bitfinex-derivatives/quotes_ETHF0:USTF0_20241230
["timestamp","ask_amount","ask_price","bid_price","bid_amount"]
[1735599423676,3.2078,3367.8,3367.4,41.09748]
[1735599423878,0.29747,3367.6,3367.4,41.09748]
[1735599424179,1.4568,3367.5,3367.4,41.09748]
[1735599430777,0.29746,3367.7,3367.5,0.29747]
[1735599430976,3.2078,3368.1,3367.5,0.29747]
[1735599430977,0.29745,3367.8,3367.5,0.29747]
[1735599431181,0.29746,3367.7,3367.5,0.29747]
[1735599431584,0.29746,3367.7,3367.6,40.8]
[1735599432275,0.29746,3367.7,3367.6,41.09746]
[1735599432974,0.29746,3367.7,3367.6,40.8]
[1735599433373,3.50526,3367.7,3367.6,40.8]
[1735599434075,3.50526,3367.7,3367.1,4.6164188]
[1735599434076,3.2078,3367.7,3367.1,4.6164188]
[1735599434276,0.2975,3367.2,3367.1,4.6164188]
[1735599434481,0.2975,3367.2,3367.1,4.9139288]
[1735599434678,0.2975,3367.2,3367.1,45.7139288]
[1735599434882,0.29749,3367.3,3367.1,45.7139188]
[1735599435076,1.5344,3367.2,3367.1,41.0975]
[1735599435784,1.5344,3367.2,3367.1,40.8]
[1735599436683,1.5344,3367.2,3367.1,41.09751]
[1735599438382,1.5344,3367.2,3367.1,40.8]
[1735599439184,2.3092,3367.2,3367.1,40.8]
[1735599439776,2.6067,3367.2,3367.1,40.8]
[1735599439981,0.29754,3366.7,3366.6,4.6164188]
[1735599440491,0.29754,3366.7,3366.6,1.0932188]
[1735599441190,0.29755,3366.6,3366.5,5.74309198]
[1735599441581,0.29755,3366.6,3366.5,4.85985773]
[1735599441779,5.29755,3366.6,3366.5,4.85985773]
[1735599442192,5.29755,3366.6,3366.5,1.63505773]
[1735599442379,0.29763,3365.7,3365.6,0.7703]
[1735599443076,3.2078,3365.8,3365.3,9.2305985]
[1735599443280,0.29766,3365.4,3365.3,9.2305985]
[1735599443692,3.2078,3365.8,3365.2,0.7694]
[1735599443882,0.29767,3365.3,3365.2,0.7694]
[1735599458898,3.2078,3365.4,3365.2,0.7694]
[1735599458899,3.50546,3365.4,3365.3,0.29767]
[1735599459094,0.595,3365.5,3365.4,0.29766]
[1735599459299,0.595,3365.5,3365.3,0.7585]
[1735599459300,0.29764,3365.7,3365.6,0.29764]
[1735599460501,3.2078,3365.8,3365.7,0.29763]
[1735599460688,0.29761,3366.0,3365.6,40.8]
[1735599460893,0.2976,3366.1,3366.0,0.2976]
[1735599461093,0.29759,3366.2,3366.1,0.29759]
[1735599462597,0.29759,3366.2,3366.0,1.0749]
[1735599462802,0.29759,3366.2,3366.1,0.782]
[1735599462992,3.2078,3366.4,3366.1,0.782]
[1735599463694,0.29755,3366.6,3366.3,3.50538]
[1735599464094,0.29755,3366.6,3366.4,0.29757]
[1735599464795,0.29755,3366.6,3366.3,3.2078]
[1735599464796,0.29754,3366.8,3366.5,0.29756]
[1735599465103,0.29752,3367.0,3366.4,0.29757]
[1735599465297,0.595,3367.3,3366.9,0.29752]
[1735599465298,0.29751,3367.2,3366.9,0.29752]
[1735599465599,0.29751,3367.2,3367.0,1.5537]
[1735599465600,0.2975,3367.2,3367.0,1.5537]
[1735599465790,0.29751,3367.2,3367.0,1.5537]
[1735599465994,0.595,3367.3,3367.0,1.5537]
[1735599466199,0.29751,3367.1,3367.0,1.5537]
[1735599467100,0.29751,3367.1,3367.0,1.85122]
[1735599467298,2.2404939,3367.5,3367.0,1.5537]
[1735599467502,2.2404939,3367.5,3367.0,1.85122]
[1735599468103,0.29751,3367.1,3367.0,1.5537]
[1735599469612,0.2975,3367.2,3367.0,1.85121]
[1735599469808,2.2404939,3367.5,3367.0,1.5537]
[1735599470012,0.29751,3367.2,3367.0,1.85122]
[1735599470212,2.2404939,3367.5,3367.0,1.5537]
[1735599470407,2.2404939,3367.5,3367.1,0.2975]
[1735599470408,0.29749,3367.3,3367.1,0.2975]
[1735599470609,0.2975,3367.2,3367.1,0.2975]
[1735599471314,0.2975,3367.3,3367.2,0.2975]
[1735599471503,2.2404939,3367.5,3367.1,3.2078]
[1735599471702,0.2975,3367.2,3367.1,3.2078]
[1735599473413,0.2975,3367.2,3367.0,0.7717]
[1735599473414,0.29751,3367.1,3367.0,0.7717]
[1735599476613,3.2078,3367.2,3366.4,3.2078]
[1735599476912,3.95156,3367.2,3366.6,0.29755]
[1735599477114,0.29754,3366.7,3366.6,0.29755]
[1735599479221,0.29754,3366.7,3366.5,1.84406]
[1735599479614,3.95156,3367.2,3366.5,1.84406]
[1735599479810,0.29755,3366.6,3366.5,0.7732]
[1735599483527,0.29755,3366.6,3366.5,1.07076]
[1735599484125,0.29755,3366.6,3366.5,0.7732]
[1735599485024,3.50535,3366.6,3366.5,0.7732]
[1735599487826,3.8028,3367.1,3366.5,0.7732]
[1735599488031,0.29753,3366.9,3366.8,0.29753]
[1735599488333,0.29752,3367.0,3366.9,0.29752]
[1735599488727,3.2078,3367.1,3366.5,1.5171]
[1735599488728,3.2078,3367.1,3366.5,1.51711]
[1735599489031,0.29751,3367.2,3367.1,0.29751]
[1735599490135,5.4482939,3367.5,3366.9,0.7334]
[1735599490327,0.29749,3367.4,3366.9,0.7334]
[1735599490530,0.29749,3367.4,3367.3,0.29749]
[1735599491333,0.29749,3367.4,3366.9,1.47722]
[1735599491334,0.2975,3367.3,3367.2,0.29749]
[1735599491631,0.29751,3367.2,3367.1,0.2975]
[1735599492040,0.29751,3367.2,3367.1,41.0975]
[1735599492637,0.29751,3367.2,3367.1,40.8]
[1735599493540,0.29752,3367.0,3366.9,1.03092]
[1735599493843,0.29752,3367.1,3367.0,0.29751]
[1735599494837,5.4482939,3367.5,3366.9,0.7334]
[1735599495043,0.29752,3367.0,3366.9,0.7334]
[1735599495442,0.29752,3367.0,3366.9,1.03093]
[1735599498043,3.2078,3367.1,3366.9,1.03093]
[1735599498246,0.29752,3367.0,3366.9,1.03093]
[1735599500340,0.29753,3366.9,3366.8,0.7113]
[1735599502039,0.29754,3366.7,3366.6,3.941]
[1735599506647,0.29754,3366.7,3366.6,3.2078]
[1735599508543,3.51589095,3366.8,3366.6,3.2078]
[1735599508750,3.51589095,3366.8,3366.7,1.80844]
[1735599508751,3.81343095,3366.8,3366.7,1.80844]
[1735599508946,3.81343095,3366.8,3366.7,2.53704]
[1735599509147,3.81343095,3366.8,3366.7,43.33704]
[1735599511251,3.81343095,3366.8,3366.7,2.2395]
[1735599522053,3.51589095,3366.8,3366.2,4.26880654]
[1735599522256,0.29757,3366.4,3366.3,2.2542]
[1735599522553,1.35857654,3366.4,3366.3,2.2542]
[1735599523358,0.29758,3366.3,3366.2,3.2078]
[1735599523554,0.29759,3366.2,3366.1,6.91345931]
[1735599523759,1.83900654,3366.2,3366.0,2.2542]
[1735599523951,0.2976,3366.1,3366.0,2.2542]
[1735599524156,1.83900654,3366.2,3365.9,40.8]
[1735599524361,0.29762,3365.8,3365.7,6.91345931]
[1735599524754,1.06100654,3365.9,3365.6,43.0931]
[1735599524960,1.35863654,3365.7,3365.6,43.0931]
[1735599525271,1.35863654,3365.7,3365.6,2.2931]
[1735599525661,0.29765,3365.5,3365.4,6.91345931]
[1735599525853,4.56645654,3365.5,3365.4,6.91345931]
[1735599526254,5.74911716,3365.5,3365.4,6.91345931]
[1735599526760,6.22436716,3365.5,3365.1,0.7292]
[1735599527063,0.29768,3365.2,3365.1,0.7292]
[1735599527563,0.29769,3365.0,3364.9,48.49645931]
[1735599527865,0.29769,3365.0,3364.9,7.69645931]
[1735599528059,3.50549,3365.0,3364.9,6.91345931]
[1735599528264,3.50549,3365.0,3364.9,6.73759708]
[1735599528460,3.2078,3365.0,3364.1,0.7528]
[1735599528762,0.29777,3364.2,3364.1,0.7528]
[1735599530076,0.29777,3364.2,3363.7,3.5056]
[1735599530077,2.24366716,3364.2,3363.7,3.2078]
[1735599530262,0.2978,3363.8,3363.7,3.2078]
[1735599530864,0.74435,3364.5,3363.7,3.50561]
[1735599530865,0.29779,3363.9,3363.7,3.50561]
[1735599531865,0.2978,3363.8,3363.7,3.2078]
[1735599534362,0.29782,3363.6,3363.5,2.2325]
[1735599535069,0.29782,3363.6,3363.5,0.7528]
[1735599535260,0.29782,3363.6,3362.7,2.47373219]
[1735599535261,2.24366716,3363.6,3362.8,1.4969]
[1735599535562,2.24366716,3363.6,3362.9,0.29788]
[1735599535563,0.29786,3363.2,3362.9,0.29788]
[1735599535758,0.29786,3363.2,3363.0,40.8]
[1735599536864,0.29786,3363.1,3363.0,40.8]
[1735599540066,0.74446,3364.1,3363.0,40.8]
[1735599540067,3.2078,3364.4,3363.0,48.04366716]
[1735599540280,3.2078,3364.4,3363.3,5.45146716]
[1735599540469,3.2078,3364.4,3363.7,3.2078]
[1735599540773,1.9998,3364.9,3364.5,0.29773]
[1735599540774,0.29772,3364.7,3364.5,0.29773]
[1735599540973,5.54679194,3364.9,3364.6,1.5594]
[1735599541362,2.24366716,3364.8,3364.2,37.90431599]
[1735599541666,0.74454,3363.7,3362.8,3.2078]
[1735599541864,2.24366716,3363.4,3362.3,9.2305985]
[1735599542069,0.29792,3362.4,3362.3,9.2305985]
[1735599542277,3.50572,3362.4,3362.3,9.2305985]
[1735599543473,3.2078,3362.4,3361.8,40.8]
[1735599543668,0.29797,3361.9,3361.8,40.8]
[1735599543868,0.29801,3361.5,3361.3,0.29802]
[1735599544065,0.298,3361.6,3361.4,0.29801]
[1735599544268,2.24366716,3362.2,3361.1,5.45146716]
[1735599544473,0.29801,3361.5,3361.2,42.2989]
[1735599544669,0.29802,3361.4,3361.2,42.2989]
[1735599544972,2.24366716,3361.9,3361.2,42.2989]
[1735599545169,0.29802,3361.3,3361.2,42.2989]
[1735599545369,2.24366716,3361.9,3361.2,42.2989]
[1735599545574,0.29802,3361.3,3361.2,42.2989]
[1735599546069,2.24366716,3361.9,3361.2,42.2989]
[1735599546266,0.29802,3361.3,3361.2,42.2989]
[1735599547673,2.24366716,3361.3,3360.3,3.2078]
[1735599547872,5.45146716,3361.3,3360.6,0.7697]
[1735599548073,0.29808,3360.7,3360.6,0.7697]
[1735599548473,0.29809,3360.5,3360.4,40.8]
[1735599548978,2.24366716,3360.7,3359.8,0.7697]
[1735599549471,0.2981,3360.4,3360.0,3.50593]
[1735599549773,2.24366716,3360.7,3360.0,3.2078]
[1735599549973,0.29811,3360.3,3360.0,3.2078]
[1735599550366,0.29812,3360.2,3360.0,3.2078]
[1735599550570,2.24366716,3360.7,3360.0,3.2078]
[1735599550770,0.29812,3360.2,3360.0,3.2078]
[1735599551175,0.29811,3360.3,3360.0,3.2078]
[1735599551369,0.2981,3360.4,3360.0,3.2078]
[1735599551581,2.24366716,3360.7,3360.0,3.2078]
[1735599551772,3.2078,3360.9,3360.4,3.2078]
[1735599551973,3.2078,3360.9,3360.6,0.29808]
[1735599551974,3.50586,3360.9,3360.6,0.29808]
[1735599552278,0.29807,3360.8,3360.5,1.03939]
[1735599552479,0.29807,3360.8,3360.5,0.7413]
[1735599552678,2.24366716,3361.0,3360.5,0.7413]
[1735599552874,0.29806,3360.9,3360.5,1.03939]
[1735599553177,0.29806,3360.9,3360.5,0.7413]
[1735599553681,0.29806,3360.9,3360.5,1.03939]
[1735599553980,2.24366716,3360.7,3359.9,40.8]
[1735599554178,3.50592,3360.2,3359.9,1.01614]
[1735599554382,0.29813,3360.1,3359.9,0.718]
[1735599554773,0.29814,3360.0,3359.9,0.718]
[1735599556381,5.45146716,3360.1,3359.6,40.8]
[1735599556583,2.24366716,3359.8,3359.6,40.8]
[1735599556780,0.29816,3359.8,3359.6,40.8]
[1735599556978,5.45146716,3360.1,3359.6,40.8]
[1735599557173,0.29815,3359.9,3359.6,40.8]
[1735599557379,5.45146716,3360.1,3359.6,40.8]
[1735599557678,3.2078,3360.1,3359.9,0.29814]
[1735599557873,3.2078,3360.1,3359.6,40.8]
[1735599557874,3.2078,3360.1,3359.8,0.29815]
[1735599558179,3.50593,3360.1,3359.8,0.29815]
[1735599558379,3.50593,3360.1,3359.9,0.7873]
[1735599559582,3.2078,3360.1,3360.0,0.29814]
[1735599560684,0.54182665,3360.3,3360.0,0.29814]
[1735599560889,0.29811,3360.3,3360.0,0.29814]
[1735599561191,2.24366716,3360.4,3360.0,0.29814]
[1735599561392,0.29812,3360.3,3360.0,0.29814]
[1735599562590,2.24366716,3360.4,3359.9,2.84214]
[1735599562799,2.24366716,3360.4,3360.0,0.29813]
[1735599563402,0.29812,3360.2,3360.0,0.29813]
[1735599565494,2.47819959,3360.4,3359.9,2.84214]
[1735599565690,0.29813,3360.1,3359.9,3.14028]
[1735599566096,0.29814,3360.0,3359.9,2.84214]
[1735599566299,2.47819959,3360.4,3359.5,3.2078]
[1735599566300,3.52466716,3360.1,3359.5,3.2078]
[1735599566508,2.54183716,3359.6,3359.5,3.2078]
[1735599570508,0.29822,3359.1,3359.0,3.2078]
[1735599570806,2.54188716,3359.1,3359.0,3.2078]
[1735599571198,2.54188716,3359.1,3358.7,1.4884]
[1735599571199,2.24366716,3359.1,3358.5,3.2078]
[1735599571405,2.54192716,3358.6,3358.5,3.2078]
[1735599572704,2.54192716,3358.6,3357.3,0.29838]
[1735599572705,0.29836,3357.5,3357.3,0.29838]
[1735599573000,0.2984,3357.0,3356.8,40.8]
[1735599573202,2.54206716,3357.0,3356.8,40.8]
[1735599573401,0.29841,3356.9,3356.8,40.8]
[1735599574009,2.24366716,3357.0,3356.7,3.9886]
[1735599574010,0.29842,3356.8,3356.7,3.9886]
[1735599574209,2.90398049,3356.8,3356.4,4.55772291]
[1735599574404,0.29845,3356.5,3356.4,4.55772291]
[1735599574705,3.20241049,3356.8,3356.4,4.85617291]
[1735599574909,2.90398049,3356.8,3356.5,0.29845]
[1735599575103,2.90398049,3356.8,3356.4,4.55772291]
[1735599575304,2.90398049,3356.8,3356.2,40.8]
[1735599575500,2.90398049,3356.8,3356.4,0.29845]
[1735599575501,0.29843,3356.7,3356.4,0.29845]
[1735599575908,0.29844,3356.6,3356.3,0.29846]
[1735599576308,0.29845,3356.5,3356.2,41.09847]
[1735599576509,0.29844,3356.7,3356.2,41.09847]
[1735599576707,0.29844,3356.7,3356.2,40.8]
[1735599576912,0.29844,3356.6,3356.2,41.09847]
[1735599577099,2.90398049,3356.8,3356.2,40.8]
[1735599577299,2.90398049,3356.4,3355.9,3.2078]
[1735599577611,3.20244049,3356.4,3356.0,0.29849]
[1735599578508,0.29847,3356.3,3356.0,0.29849]
[1735599578804,2.90398049,3356.4,3355.9,3.2078]
[1735599578805,3.20244049,3356.4,3356.1,0.29848]
[1735599579211,3.20244049,3356.4,3355.9,3.2078]
[1735599579212,2.90398049,3356.8,3355.9,3.2078]
[1735599579608,0.29844,3356.7,3356.0,0.29849]
[1735599579811,0.29844,3356.7,3356.3,0.29846]
[1735599580306,2.90398049,3356.8,3355.9,3.2078]
[1735599580610,3.20240049,3356.8,3356.5,0.29844]
[1735599581612,3.20240049,3356.8,3356.6,0.29844]
[1735599581808,2.90398049,3356.8,3356.6,0.29844]
[1735599582310,2.90398049,3356.8,3355.9,3.2078]
[1735599582510,2.90398049,3356.8,3356.7,0.29843]
[1735599583010,3.2078,3357.4,3356.4,3.2078]
[1735599583206,3.2078,3357.4,3357.2,0.29838]
[1735599583410,0.29837,3357.4,3357.2,0.29838]
[1735599583914,0.29836,3357.5,3357.3,0.29838]
[1735599584708,0.74578,3358.1,3356.8,3.2078]
[1735599584709,3.2078,3358.2,3357.4,3.2078]
[1735599585008,3.2078,3358.2,3356.8,2.90398049]
[1735599585009,3.2078,3358.8,3357.8,3.2078]
[1735599585205,2.90398049,3359.1,3358.7,0.29825]
[1735599585412,5.24233888,3359.8,3357.9,0.7717]
[1735599585413,3.2078,3359.6,3358.6,3.2078]
[1735599585612,0.29815,3359.9,3359.6,0.29817]
[1735599585803,3.2078,3360.0,3359.7,0.29816]
[1735599586007,3.50594,3360.0,3359.7,0.29816]
[1735599586617,3.2078,3360.0,3359.8,0.29815]
[1735599586916,0.29815,3359.9,3359.7,0.29816]
[1735599587216,3.2078,3360.0,3359.8,0.29815]
[1735599588309,3.2078,3360.0,3359.7,40.8]
[1735599588511,3.50594,3360.0,3359.7,0.29816]
[1735599588816,3.50594,3360.0,3359.1,0.7717]
[1735599588817,3.2078,3360.0,3359.1,0.7717]
[1735599589020,3.2078,3360.0,3359.2,0.2982]
[1735599589320,0.29818,3359.5,3359.2,0.2982]
[1735599589713,3.2078,3360.0,3359.2,0.2982]
[1735599590018,0.29815,3359.9,3359.2,0.2982]
[1735599590314,0.2982,3359.3,3359.1,0.7717]
[1735599590913,0.2982,3359.3,3359.1,1.06992]
[1735599591114,0.29819,3359.4,3359.1,1.06992]
[1735599591505,2.90398049,3359.9,3359.1,0.7717]
[1735599591710,0.29815,3359.8,3359.1,0.7717]
[1735599591910,3.14485258,3359.9,3359.1,0.7717]
[1735599592111,0.2982,3359.3,3359.1,0.7717]
[1735599592318,3.14485258,3359.9,3359.1,1.06992]
[1735599592319,0.2982,3359.4,3359.1,1.06992]
[1735599593418,3.14485258,3359.9,3359.1,0.7717]
[1735599593917,0.29818,3359.6,3359.3,0.2982]
[1735599594111,0.29818,3359.6,3359.1,0.7717]
[1735599594311,0.29818,3359.6,3359.2,0.2982]
[1735599594512,0.29818,3359.6,3359.1,0.7717]
[1735599594705,3.14485258,3359.9,3359.1,0.7717]
[1735599594906,0.29818,3359.6,3359.3,0.29819]
[1735599595310,0.29815,3359.9,3359.6,0.29817]
[1735599596509,3.2078,3360.0,3359.1,0.7717]
[1735599596713,3.2078,3360.0,3359.9,0.29815]
[1735599598513,3.2078,3360.0,3359.8,0.29815]
[1735599598716,3.2078,3360.0,3359.9,0.29815]
[1735599599618,3.50594,3360.0,3359.9,0.29815]
[1735599600216,3.2078,3360.0,3359.1,0.7717]
[1735599600918,0.29818,3359.6,3359.4,0.29819]
[1735599601117,0.29536828,3359.6,3359.4,0.29819]
[1735599601417,3.2078,3360.0,3359.3,0.29819]
[1735599601618,0.29818,3359.5,3359.3,0.29819]
[1735599601819,3.2078,3360.0,3359.1,0.7717]
[1735599602013,0.2982,3359.3,3359.2,0.29821]
[1735599602216,0.29819,3359.4,3359.3,0.2982]
[1735599602718,0.2982,3359.3,3359.1,0.7717]
[1735599602912,3.2078,3359.6,3359.0,0.29822]
[1735599603108,3.2078,3359.6,3358.6,3.2078]
[1735599603919,3.2078,3359.6,3358.8,0.74561]
[1735599604119,0.29819,3359.4,3359.3,0.29819]
[1735599604321,3.2078,3359.6,3359.3,0.29819]
[1735599604516,0.29819,3359.5,3359.3,0.29819]
[1735599605010,3.2078,3359.6,3359.3,0.29819]
[1735599605216,3.2078,3359.6,3358.7,1.6386]
[1735599605415,0.29823,3359.0,3358.7,1.6386]
[1735599605618,0.29823,3359.0,3358.8,0.29824]
[1735599605821,3.95324,3359.6,3358.6,3.2078]
[1735599606027,0.29827,3358.5,3358.3,0.29828]
[1735599606323,3.64953049,3359.1,3358.3,0.29829]
[1735599606515,0.29827,3358.6,3358.5,0.29827]
[1735599606717,3.2078,3358.8,3357.8,0.8306]
[1735599607016,0.29831,3358.1,3358.0,0.29831]
[1735599607218,0.2983,3358.2,3358.0,0.29831]
[1735599607419,4.47672049,3358.7,3358.0,0.29831]
[1735599607618,0.29831,3358.0,3357.9,3.50612]
[1735599607816,0.29831,3358.1,3357.9,3.50612]
[1735599608017,0.29831,3358.0,3357.9,3.2078]
[1735599608418,0.29833,3357.8,3357.7,41.09834]
[1735599608613,0.29833,3357.8,3357.7,40.8]
[1735599609627,6.11178049,3358.3,3357.4,0.29837]
[1735599609823,0.29835,3357.6,3357.4,0.29837]
[1735599610028,0.29836,3357.5,3357.3,0.29837]
[1735599610329,0.29836,3357.5,3357.4,40.8]
[1735599611422,0.29836,3357.5,3357.0,4.8306]
[1735599611423,0.29838,3357.3,3357.1,0.29839]
[1735599611619,6.11178049,3357.5,3356.6,0.29843]
[1735599611820,0.29843,3356.7,3356.5,0.29845]
[1735599612125,6.11178049,3357.1,3356.4,0.29845]
[1735599612424,6.11178049,3357.1,3356.2,40.8]
[1735599612627,0.29841,3356.9,3356.6,0.29843]
[1735599613421,6.11178049,3357.1,3356.2,40.8]
[1735599613732,7.39278049,3357.9,3356.9,3.2078]
[1735599613930,0.29835,3357.6,3357.3,0.29837]
[1735599614529,0.29835,3357.6,3356.9,3.2078]
[1735599614732,0.29835,3357.7,3356.9,3.2078]
[1735599614928,3.2078,3357.9,3357.7,0.29834]
[1735599615132,0.74567,3358.6,3357.0,1.48852]
[1735599615133,1.04891094,3358.5,3357.5,3.2078]
[1735599615432,1.04891094,3358.5,3357.0,1.5418]
[1735599615433,6.11178049,3358.3,3357.6,0.7833]
[1735599615732,0.29833,3357.9,3357.6,1.08164]
[1735599615924,0.2983,3358.2,3357.6,1.08164]
[1735599616129,6.11178049,3358.3,3357.6,1.08164]
[1735599616332,6.11178049,3358.3,3357.6,0.7833]
[1735599616333,3.2078,3358.3,3357.6,0.7833]
[1735599616634,3.2078,3358.3,3357.7,0.29834]
[1735599616825,0.29833,3357.9,3357.7,0.29834]
[1735599617026,0.29834,3357.7,3357.6,0.7833]
[1735599617227,0.29834,3357.7,3357.6,41.5833]
[1735599618038,3.2078,3357.8,3357.0,1.5418]
[1735599618230,0.29839,3357.3,3357.1,0.29839]
[1735599618429,0.29839,3357.3,3357.0,1.5418]
[1735599618430,0.29839,3357.2,3357.0,1.8402]
[1735599618631,0.29838,3357.3,3357.0,42.6402]
[1735599618839,0.29839,3357.2,3357.0,40.8]
[1735599619044,2.90398049,3357.5,3356.6,3.9742]
[1735599619239,0.29841,3357.0,3356.8,0.29842]
[1735599619540,3.2078,3357.4,3356.8,40.8]
[1735599619738,0.2984,3357.0,3356.8,41.09842]
[1735599620233,3.2078,3357.4,3356.8,41.09842]
[1735599620234,3.2078,3357.4,3356.8,40.8]
[1735599620431,0.29838,3357.3,3357.0,0.2984]
[1735599620638,3.2078,3357.4,3357.0,0.2984]
[1735599620833,0.29839,3357.2,3357.0,0.2984]
[1735599621242,3.2078,3357.4,3356.8,40.8]
[1735599621434,3.2078,3357.4,3356.8,41.09842]
[1735599621435,0.29841,3357.0,3356.8,41.09842]
[1735599621635,0.2984,3357.1,3356.9,0.29841]
[1735599622136,3.2078,3357.4,3356.8,41.09842]
[1735599622435,0.2984,3357.1,3356.9,0.29841]
[1735599622641,3.2078,3357.4,3356.8,40.8]
[1735599623236,3.50617,3357.4,3357.2,0.29838]
[1735599623534,3.50617,3357.4,3356.8,40.8]
[1735599623737,3.50617,3357.4,3357.3,0.29838]
[1735599623943,3.50617,3357.4,3357.2,0.29838]
[1735599624237,3.2078,3357.4,3356.8,40.8]
[1735599624443,3.2078,3357.4,3357.3,0.29838]
[1735599627441,0.29838,3357.3,3356.8,40.8]
[1735599627640,3.50617,3357.4,3357.2,0.29838]
[1735599628138,3.2078,3357.4,3356.8,40.8]
[1735599628338,3.2078,3357.4,3356.6,0.7664]
[1735599628539,0.29838,3357.3,3357.1,0.29839]
[1735599628740,3.2078,3357.4,3356.7,40.8]
[1735599628943,3.2078,3357.4,3357.3,0.29838]
[1735599630149,3.50614,3357.8,3357.7,0.29834]
[1735599630347,3.50614,3357.8,3357.1,0.74599]
[1735599630546,3.50614,3357.8,3357.6,0.29834]
[1735599630748,0.29834,3357.7,3357.5,0.29836]
[1735599633049,0.29836,3357.6,3357.4,0.29836]
[1735599633245,3.2078,3357.8,3357.0,3.2078]
[1735599633454,0.29834,3357.7,3357.5,0.29835]
[1735599633651,0.29834,3357.7,3357.6,0.29835]
[1735599633951,0.29835,3357.6,3357.0,3.2078]
[1735599634149,0.29835,3357.6,3357.5,0.29836]
[1735599634848,3.2078,3357.8,3357.0,3.2078]
[1735599635249,0.29835,3357.6,3357.5,0.29835]
[1735599635648,3.2078,3357.8,3357.0,3.2078]
[1735599635852,2.90398049,3357.3,3356.3,0.8082]
[1735599636153,2.90398049,3357.3,3356.1,4.55772291]
[1735599636154,0.29845,3356.5,3356.4,0.29845]
[1735599636354,3.2078,3356.6,3356.1,4.55772291]
[1735599636555,2.90398049,3356.8,3356.1,4.55772291]
[1735599636849,3.20241049,3356.8,3356.7,0.29843]
[1735599637150,3.2078,3357.0,3356.9,0.29841]
[1735599637943,3.2078,3357.5,3356.9,0.74603]
[1735599638150,3.2078,3357.5,3357.4,0.29837]
[1735599638750,3.50616,3357.5,3357.4,0.29837]
[1735599638945,3.50616,3357.5,3356.9,0.74603]
[1735599639150,0.29837,3357.4,3357.3,0.29837]
[1735599639548,0.29837,3357.4,3357.2,0.29838]
[1735599639750,0.29838,3357.4,3357.2,0.29838]
[1735599639950,3.2078,3357.5,3357.2,0.29838]
[1735599640150,0.29837,3357.4,3357.2,0.29838]
[1735599641351,0.29837,3357.4,3357.3,0.29838]
[1735599641560,0.29837,3357.4,3357.2,0.29838]
[1735599642557,3.50616,3357.5,3357.3,0.29837]
[1735599643048,3.2078,3357.5,3356.7,1.5934]
[1735599643255,0.2984,3357.1,3357.0,0.2984]
[1735599643455,0.29839,3357.2,3357.1,0.29839]
[1735599643655,3.2078,3357.5,3356.7,1.5934]
[1735599643856,0.29837,3357.4,3357.3,0.29837]
[1735599644455,0.29837,3357.4,3357.2,0.29838]
[1735599644649,0.29837,3357.4,3356.7,2.33946]
[1735599644851,0.29838,3357.3,3357.2,0.29838]
[1735599645051,0.29839,3357.2,3357.1,0.29839]
[1735599645457,0.29838,3357.3,3357.2,0.29838]
[1735599646253,0.29839,3357.2,3357.1,0.29839]
[1735599646654,0.29837,3357.4,3357.0,0.29839]
[1735599646855,0.29838,3357.3,3357.2,0.29838]
[1735599647445,0.29837,3357.4,3357.3,0.29837]
[1735599647651,3.50617,3357.5,3356.8,0.74606]
[1735599647849,0.29837,3357.4,3357.3,0.29837]
[1735599649656,3.50616,3357.5,3357.4,0.29837]
[1735599650561,3.2078,3357.5,3357.4,0.29837]
[1735599651856,2.33899194,3357.6,3357.5,0.29836]
[1735599653050,2.33899194,3357.6,3357.5,1.08646]
[1735599653759,2.33899194,3357.6,3357.5,4.29426]
[1735599654159,5.54679194,3358.0,3357.9,0.29832]
[1735599655353,3.2078,3358.0,3357.9,0.29832]
[1735599657466,2.33899194,3358.2,3358.1,0.29831]
[1735599657860,3.50889662,3358.3,3358.2,0.2983]
[1735599658362,0.65338856,3358.3,3358.2,0.2983]
[1735599658563,0.65338856,3358.3,3358.2,41.0983]
[1735599659067,2.25402302,3358.9,3358.8,0.29824]
[1735599659259,6.23632302,3359.2,3358.4,3.2078]
[1735599659560,4.28051,3359.2,3359.1,0.29822]
[1735599659953,4.28051,3359.2,3358.5,0.74568]
[1735599660157,0.29822,3359.1,3359.0,0.29822]
[1735599660356,4.28051,3359.2,3359.1,0.29822]
[1735599660561,0.29822,3359.1,3359.0,0.29822]
[1735599661362,0.29825,3358.8,3358.7,0.29825]
[1735599661563,0.29826,3358.7,3358.4,7.76552291]
[1735599661757,0.29826,3358.6,3358.5,0.29826]
[1735599661963,0.7928,3358.7,3358.4,4.55772291]
[1735599662273,2.55229302,3358.5,3358.4,4.55772291]
[1735599662766,2.55229302,3358.5,3358.0,0.29831]
[1735599662767,0.29831,3358.1,3358.0,0.29831]
[1735599663169,3.5061,3358.2,3358.0,0.29831]
[1735599663364,0.7448,3358.4,3357.9,2.25402302]
[1735599663563,0.7928,3358.7,3358.0,1.55039]
[1735599663765,1.09106,3358.7,3358.6,0.29826]
[1735599663964,3.34508302,3358.7,3358.6,0.29826]
[1735599664165,3.04682302,3358.7,3358.6,0.29826]
[1735599664366,0.7928,3358.7,3358.6,0.29826]
[1735599665367,0.29825,3358.8,3358.3,3.2078]
[1735599665569,0.29825,3358.8,3358.7,0.29825]
[1735599665761,0.7448,3359.0,3358.3,3.2078]
[1735599666068,0.7448,3359.0,3358.9,0.29823]
[1735599666460,0.7448,3359.0,3358.6,0.74565]
[1735599666660,3.2078,3358.7,3358.6,0.29825]
[1735599666967,0.29825,3358.8,3358.7,0.29825]
[1735599667268,0.29826,3358.6,3358.5,0.29826]